Cogmind - Beta 13 @@@ ROGUE MODE // 2024.07.12 @ 02:11:42 Player: ThatBishHoly Result: Destroyed by G-34 Mercenary with Small Laser Performance ------------- Evolutions (1) 500 Regions Visited (2) 400 Robots Destroyed (24) 120 Value Destroyed (432) 432 Prototype IDs (2) 40 Alien Tech Used (0) 0 Bonus (14) 14 TOTAL SCORE: 1506 Bonus ------- High Alert Combat Kills 14 Cogmind --------- Core Integrity 0/400 Matter 6/300 Energy 100/100 System Corruption 0% Temperature Cool (6) Movement Rolling (115) Ox1 Location -9/Materials Parts ------- > --- POWER (1) -------- (None) > --- PROPULSION (2) --- Compact Wheel > --- UTILITY (2) ------ Large Storage Unit Targeting Computer > --- WEAPON (4) ------- Heavy Assault Rifle Datajack > --- INVENTORY (15) --- Compact Wheel Improved Flight Unit Improved Flight Unit Improved Flight Unit Improved Flight Unit Improved Flight Unit Visual Processing Unit Peak State ------------ > --- POWER ------------ Ion Engine > --- PROPULSION ------- Compact Wheel Compact Wheel > --- UTILITY ---------- Large Storage Unit Targeting Computer > --- WEAPON ----------- Mini Grenade Launcher Mini Grenade Launcher Mini Grenade Launcher Mini Grenade Launcher > --- INVENTORY -------- Compact Wheel Compact Wheel Datajack [Rating: 13] Favorites ----------- Power Light Ion Engine Engine Light Ion Engine Propulsion Compact Wheel Wheel Compact Wheel Utility Targeting Computer Storage Large Storage Unit Processor Targeting Computer Weapon Mini Grenade Launcher Ballistic Gun Assault Rifle Launcher Mini Grenade Launcher Special Melee Weapon Datajack Build | -11 -10 -9 ------- Run | Yrd Mat Mat Slots Evolved 2 | . . 2 Power . | . . . Propulsion . | . . . Utility . | . . . Weapon 2 | . . 2 Parts Attached 21 | 4 10 7 Power 3 | 1 2 . Engine 3 | 1 2 . Core . | . . . Reactor . | . . . Propulsion 6 | . 3 3 Treads . | . . . Leg . | . . . Wheel 6 | . 3 3 Hover . | . . . Flight . | . . . Utility 4 | 1 3 . Device . | . . . Storage 3 | 1 2 . Processor 1 | . 1 . Hackware . | . . . Protection . | . . . Artifact . | . . . Weapon 8 | 2 2 4 Energy Gun . | . . . Energy Cannon . | . . . Ballistic Gun 3 | 2 . 1 Ballistic Cannon . | . . . Launcher 4 | . 2 2 Special Weapon . | . . . Impact Weapon . | . . . Slashing Weapon . | . . . Piercing Weapon . | . . . Special Melee Weapon 1 | . . 1 Unidentified Prototypes . | . . . Parts Lost 8 | . . 8 Power 1 | . . 1 Propulsion 3 | . . 3 Utility . | . . . Weapon 4 | . . 4 Highest Loss Streak 4 | . . 4 To Critical Strikes . | . . . Average Slot Usage (%) 81 | . 92 68 Engine 11 | . 13 8 Wheel 22 | . 24 19 Storage 12 | . 14 11 Processor 10 | . 10 11 Ballistic Gun 7 | . 14 . Launcher 15 | . 13 17 Naked Turns . | . . . Heaviest Build 29 | 11 27 29 Greatest Support 32 | 3 32 32 Greatest Overweight (x) 6 | 3 3 6 Average Overweight (x) . | 2 . . Largest Inventory Capacity 15 | 8 15 15 Average Capacity 13 | 7 12 15 Most Carried 11 | 3 6 11 Average Carried 4 | 1 3 5 Final Capacity 15 | 8 15 15 Final Carried 7 | 2 5 7 Class Distribution -------------------- 91% | Mutant 8% | Bomber Dominant Class ---------------- Mutant | -10/Materials Mutant | -9/Materials Resources | -11 -10 -9 ----------- Run | Yrd Mat Mat Matter Collected 491 | 147 127 217 Remotely . | . . . Salvage Created 364 | . 151 213 Parts 32 | . 9 23 Haulers Intercepted 4 | . 1 3 Recyclers Shooed 1 | . . 1 Parts Field Recycled . | . . . Retrieved Matter . | . . . Parts Self-Destructed . | . . . Prevented . | . . . Kills | -11 -10 -9 ------- Run | Yrd Mat Mat Combat Hostiles Destroyed 13 | . 5 8 Guns 4 | . 3 1 AOE 9 | . 2 7 Classes Destroyed 7 | . 3 4 Worker 4 | . . 4 Tunneler 2 | . . 2 Hauler 4 | . 1 3 Recycler 1 | . . 1 Swarmer 7 | . 3 4 Grunt 3 | . 2 1 Sentry 3 | . . 3 Best Kill Streak 7 | . 3 7 Combat Bots Only 4 | . 3 4 Max Kills in Single Turn 3 | . 2 3 Gunslinging . | . . . Exploded 3 | . 2 3 Melee . | . . . Uniques/NPCs Destroyed . | . . . Combat | -11 -10 -9 -------- Run | Yrd Mat Mat Hostile Shots Fired 132 | . 18 114 Missed 37 | . 3 34 Damage Taken 1170 | . 119 1051 Core 443 | . 34 409 Absorbed by Shields . | . . . Core Remaining (%) 93 | 100 86 . Volleys Fired 40 | . 10 30 Largest 4 | . 2 4 Hottest 120 | . 60 120 Shots Fired 60 | . 18 42 Gun 24 | . 16 8 Cannon . | . . . Launcher 36 | . 2 34 Special . | . . . Kinetic 24 | . 16 8 Thermal . | . . . Explosive 36 | . 2 34 Electromagnetic . | . . . Robot Hit Streak 11 | . 4 11 Robot Miss Streak 9 | . 9 3 Penetration Max . | . . . Secondary Targets 2 | . 2 . Max Gunslinging Chain 1 | . 1 . Shots Hit Robots 30 | . 6 24 Core Hits 33 | . 7 26 Critical Kills . | . . . Critical Parts Destroyed . | . . . Critical Strikes . | . . . Melee Attacks . | . . . Impact . | . . . Slashing . | . . . Piercing . | . . . Sneak Attacks . | . . . Combat Hostiles . | . . . Follow-up Attacks . | . . . Damage Inflicted 1705 | 1 168 1536 Guns 88 | . 57 31 Cannons . | . . . Explosions 1616 | . 111 1505 Melee . | . . . Ramming 1 | 1 . . Kinetic 88 | . 57 31 Thermal 116 | . . 116 Explosive 1500 | . 111 1389 Electromagnetic . | . . . Impact . | . . . Slashing . | . . . Piercing . | . . . Highest Corruption 5 | . 5 . Average Corruption 4 | . 4 . Corruption Purged . | . . . Corruption Blocked . | . . . Effects 10 | . 10 . Message Errors 3 | . 3 . Matter Fused 3 | . 3 . Data Loss (minor) 1 | . 1 . Data Loss (major) 1 | . 1 . Weapon Failures 2 | . 2 . Overload Shots . | . . . Overflow Damage 89 | . . 89 Projectiles . | . . . Explosions 89 | . . 89 Melee . | . . . Knockbacks . | . . . Impact . | . . . Kinetic . | . . . Secondary . | . . . Self-Inflicted Damage 83 | . . 83 Shots 4 | . . 4 Rammed 1 | 1 . . Targets Rammed 1 | 1 . . Kicked . | . . . Crushed . | . . . Highest Temperature 79 | . . 79 Average Temperature 29 | . . 29 Received Heat Transfer 267 | . 6 261 Siege Activations . | . . . Robots Corrupted . | . . . Combat Hostiles . | . . . Parts Fried . | . . . Impact Corruptions . | . . . Robots Melted . | . . . Combat Hostiles . | . . . Parts Melted . | . . . Heat Transferred 100 | . . 100 Parts Sabotaged . | . . . Parts Stolen . | . . . Parts Stripped . | . . . Power Chain Reactions . | . . . Alert | -11 -10 -9 ------- Run | Yrd Mat Mat Peak Influence 572 | . 190 572 Initial . | . . . Average 183 | . 82 327 Maximum Alert Level 2 | . . 2 Low Security (%) 64 | 100 100 18 Level 1 24 | . . 56 Level 2 11 | . . 25 Level 3 . | . . . Level 4 . | . . . Level 5 . | . . . High Security . | . . . Max Security . | . . . Squads Dispatched . | . . . Investigation . | . . . Extermination . | . . . Reinforcement . | . . . Assault . | . . . Garrison . | . . . Intercept . | . . . Searches Triggered . | . . . Construction Impeded . | . . . Haulers Reinforced . | . . . Active Scanning Responses . | . . . Cargo Convoy Interrupts . | . . . Stealth | -11 -10 -9 --------- Run | Yrd Mat Mat Distress Signals . | . . . Communications Jammed . | . . . Distress Signals . | . . . Times Spotted 18 | . 6 12 Peak Tracking Total 6 | . 4 6 Tactical Retreats 1 | . . 1 Traps | -11 -10 -9 ------- Run | Yrd Mat Mat Traps Triggered 4 | . 4 . Indirectly . | . . . Trap Hack Attempts . | . . . Triggered . | . . . Disarmed . | . . . Reprogrammed . | . . . Reused . | . . . Traps Extracted . | . . . Installed . | . . . Triggered . | . . . Machines | -11 -10 -9 ---------- Run | Yrd Mat Mat Machines Disabled 8 | . . 8 Max in Single Turn 3 | . . 3 Machines Repaired . | . . . Machines Dismantled . | . . . Machines Sabotaged . | . . . Overloaded Fab Kills . | . . . Hacking | -11 -10 -9 --------- Run | Yrd Mat Mat Machines Accessed 4 | . 3 1 Terminals 3 | . 3 . Fabricators . | . . . Repair Stations . | . . . Recycling Units 1 | . . 1 Scanalyzers . | . . . Garrison Access . | . . . Total Hacks 10 | . 8 2 Successful 6 | . 4 2 Failed 4 | . 4 . Catastrophic . | . . . Database Lockouts . | . . . Manual . | . . . Terminals 8 | . 8 . Fabricators . | . . . Repair Stations . | . . . Recycling Units 2 | . . 2 Scanalyzers . | . . . Garrison Access . | . . . Terminal Hacks 4 | . 4 . Record 1 | . 1 . Robot Analysis 1 | . 1 . Prototype ID Bank 1 | . 1 . Alert Level 1 | . 1 . Fabricator Hacks . | . . . Repair Station Hacks . | . . . Recycling Unit Hacks 2 | . . 2 Process 1 | . . 1 Retrieve Matter 1 | . . 1 Scanalyzer . | . . . Garrison Access Hacks . | . . . Unauthorized Hacks . | . . . Terminals . | . . . Fabricators . | . . . Repair Stations . | . . . Recycling Units . | . . . Scanalyzers . | . . . Garrison Access . | . . . Data Cores Recovered . | . . . Used . | . . . Hacking Detections 4 | . 3 1 Full Trace Events 1 | . 1 . Feedback Events . | . . . Feedback Blocked . | . . . Robot Schematics Acquired . | . . . Robots Built . | . . . Authchips . | . . . Time . | . . . Total Robot Build Rating . | . . . Part Schematics Acquired . | . . . Parts Built . | . . . Authchips . | . . . Time . | . . . Total Part Build Rating . | . . . Parts Repaired . | . . . Time . | . . . Parts Recycled . | . . . Recycled Matter 21 | . . 21 Retrieved Matter 21 | . . 21 Retrieved Components . | . . . Parts Scanalyzed . | . . . Part Schematics Acquired . | . . . Parts Damaged . | . . . Bothacking | -11 -10 -9 ------------ Run | Yrd Mat Mat Used RIF Installer . | . . . Robots Hacked . | . . . Non-combat . | . . . Combat . | . . . Robot Hacks Applied . | . . . Relay Couplers Released . | . . . Fabnet Peak Effective % . | . . . Robots Rewired . | . . . Allies Hacked . | . . . Hacks Repelled . | . . . Allies | -11 -10 -9 -------- Run | Yrd Mat Mat Total Allies . | . . . Largest Group . | . . . Highest-Rated Group . | . . . Highest-Rated Ally . | . . . Total Orders . | . . . Ally Attacks . | . . . Total Damage . | . . . Kills . | . . . Allies Corrupted . | . . . Allies Melted . | . . . Intel | -11 -10 -9 ------- Run | Yrd Mat Mat Robot Analysis Total 1 | . 1 . Derelict Logs Recovered . | . . . Drone Launches . | . . . Drone Recoveries . | . . . Exploration | -11 -10 -9 ------------- Run | Yrd Mat Mat Turns Passed 966 | 78 466 422 Spaces Moved 761 | 40 384 337 Core 74 | 40 29 5 Treads . | . . . Legs . | . . . Wheels 687 | . 355 332 Hover . | . . . Flight . | . . . Fastest Speed 50 | 50 90 95 Average Speed 104 | 170 101 100 Slowest Speed 350 | 200 200 350 Overloaded Moves . | . . . Propulsion Burnouts . | . . . Robots Hopped . | . . . Cave-ins Triggered . | . . . Exploration Rate (%) 27 | 3 47 31 Regions Visited 2 Branch Regions . Pre-discovered Areas . | . . . Known Exits Taken . | . . . Unknown Exits Taken 2 | 1 1 . Scrap Searched . | . . . Spaces Dug . | . . . Terrain Destroyed 275 | . 24 251 Melee . | . . . Projectile . | . . . AOE 275 | . 24 251 Terrain Rammed . | . . . Walls Destroyed . | . . . Machines Disabled . | . . . Actions | -11 -10 -9 --------- Run | Yrd Mat Mat Total 874 | 50 442 382 Wait 16 | . 16 . Move 759 | 39 383 337 Hop . | . . . Pick Up 29 | 6 15 8 Fast Attach . | . . . Attach 14 | 4 4 6 Detach . | . . . Swap 7 | . 6 1 Drop 8 | . 8 . Fire 40 | . 10 30 Melee . | . . . Ram 1 | 1 . . Kick . | . . . Crush . | . . . Escape Stasis . | . . . Rewire . | . . . Trap . | . . . Miscellaneous . | . . . Route ------- -11/Scrapyard -10/Materials (discovered 2 exits: *Mat / [*Min]) -9/Materials (discovered 1 exit: [*Sto]) History --------- Turn | Location | Event 44 | -11/Scrapyard | Discovered new exit (range 15) 79 | -11/Scrapyard | Entered Materials 182 | -10/Materials | Discovered new exit (range 11) 316 | -10/Materials | Build established: Mutant 402 | -10/Materials | Discovered new exit (range 15) 545 | -10/Materials | Entered another Materials area 545 | -9/Materials | Evolved 2 slots: Weapon x2 581 | -9/Materials | Discovered new exit (range 16) 918 | -9/Materials | Core integrity fell below 50% 936 | -9/Materials | Lost 4 parts (1p2n1w) 952 | -9/Materials | Core integrity fell below 20% 967 | -9/Materials | Destroyed by G-34 Mercenary with Small Laser Last Messages --------------- 00892_ U-05 Engineer lays Concrete. 00893_ Acquired Prototype Flight Unit. 00894_ K-01 Serf collects debris. 00894_ U-05 Engineer builds a Wall. 00895_ Acquired Prototype Flight Unit. 00896_ K-01 Serf collects debris. 00898_ U-05 Engineer builds a Wall. 00900_ K-01 Serf collects debris. 00902_ U-05 Engineer lays Concrete. 00902_ K-01 Serf collects debris. 00903_ U-05 Engineer lays Concrete. 00904_ U-05 Engineer builds a Wall. 00905_ Arm. Wheel destroyed. 00908_ The unstable cave ceiling collapses. 00908_ Aluminum Leg crushed. 00913_ The unstable cave ceiling collapses. 00918_ K-01 Serf collects debris. 00945_ Com. Wheel destroyed. 00956_ S-10 Pest destroyed. 00958_ R-06 Scavenger collects Flight Unit. Map ----- +----------------------------------------------------+ | " #????# ##?### ""?????????????? | | #????# " ? "??????????????? | | #????# #??# ???????????????? | | " #????# #??# ?????????????????? | | " #????## # # ##?# #########??????????? | | " ###### #! ### # ???????????? | | # # ## " ?????????????? | | # ??"??????????? | | # # """ "#?????????? | | #### #= """ T#?????????? | | # # # #### # """ "#?????????? | | # ## # # """ "#?????????? | | # ! T ## %"""""" # + """ "#?????????? | | "" ## """"""" # # #?????????? | | # ###?# """"""" # ###+## ####?????????? | | # #???# """"""" # #?# #???????????????? | | ## #???# """"""" + ###+####????????????? | | ## #???# ## # #????????????? | | # ### #???# = ## # !! #????????????? | | ##?# #???############ + ! #????????????? | | #??# #??????????????# # #????????????? | | #### ################ # | #????????????? | | + Y ; #????????????? | | # ##### # # ;;;###????????????? | | ##### #???# g # ; #????????????? | | ?? #???# r ;@ #" #????????????? | | ?####### #####+##+####### ; #????????????? | | ???????# # #?# # ##???????????? | | ???????# # #?## # #???????????? | | ???????# # #?## # #???????????? | | ???????# # ### # ##???????????? | | ???????? ############ # # # #????????????? | | ???????? ????# # # # #????????????? | | ???????? ????# """ ### # ####????????????? | | ???????? ????# """ ## ! # #?????????????? | | ???????? ????# """ ## #"#####?????????? | | ???????? ????# # ###+## #?????????? | | ???????? ????# """ # ! #?????????? | | ?????????????# """ + < #?????????? | | ?????????????# """ # #?????????? | | ?????????????# #### ##+## = #?????????? | | ?????????????# """ ## ##| ####??????? | | ?????????????# """ ## * #??????? | | ?????????????# """ ## ## ##??????? | | ?????????????# ## # #???????? | | ?????????????##"Y"#### # ####???????? | | ??????????????#"""#??# ## ##??????? | | ??????????????#####??# ## ##?????? | | ?????????????????????# #####?? | | ?????????????????????# #?? | +----------------------------------------------------+ Best States ------------- Heat Dissipation 28 Energy Generation 10 Energy Capacity 250 Matter Stores 212 Matter Capacity 300 Sight Range 16 Terrain Scan Density 10 Evasion (%) 50 Targeting Accuracy 5 Item Schematics ----------------- None Robot Schematics ------------------ None Fabricated ------------ Nothing Alien Tech Used ----------------- None Achievements -------------- None Challenges ------------ None Game ------ Seed ThiefAntimatterNetwork Manual? 0 Play Time 00:15:32 Cumulative 57.8 hours Start 2024.07.12 @ 02:00:18 End 2024.07.12 @ 02:11:42 Sessions 1 Manual Loads 0 Difficulty Rogue Special Mode None Game No. 156 Rogue 156 Adventurer 0 Explorer 0 Win Type - Total 0 Types 0/0/0/0/0/0/0/0/0 Lore% 22 Gallery% 41 Achievement% 26 Wizard Run 0 Options --------- Layout 0 ASCII 0 Keyboard 0 Movement Arrows Keybinds 0 Fullscreen 1 Font 12/Smallcaps Map View 38x28 Zoom Use 100% Tactical HUD 1 Map Filters NONE Filters NONE Steam SD RUN: 0fbc8689-be0d-4b4b-80df-01754787ac97